Workbook

Sheet DATI DI ZUCCHERO NEL SANGUE
B1: RILEVATORE DI ZUCCHERO NEL SANGUE
B2: GRAFICO ANDAMENTO
B3: Il grafico a linee che tiene traccia dello zucchero nel sangue con una media consecutiva si trova in questa cella.
F4: INFORMAZIONI: I livelli di zucchero nel sangue variano in base alla persona. Mantenerli nell'intervallo normale dipende da diversi fattori e non si basa solo sull’assunzione di zucchero. Per altre informazioni o un follow-up, consultare un medico.
B5: IMMISSIONE DATI
B7: DATA | C7: ORA | D7: ZUCCHERO NEL SANGUE (mg/dL) | E7: MEDIA CONSECUTIVA
B8: =TODAY()-6 -> 2018-11-13 | C8: 08:45:00 | D8: 126 | E8: =IFERROR(AVERAGE(INDEX(ZuccheroSangue[ZUCCHERO NEL SANGUE (mg/dL)],1,1):ZuccheroSangue[[#This Row],[ZUCCHERO NEL SANGUE (mg/dL)]]), "") -> 126.0
B9: 2018-11-13 | C9: 12:30:00 | D9: 115 | E9: =IFERROR(AVERAGE(INDEX(ZuccheroSangue[ZUCCHERO NEL SANGUE (mg/dL)],1,1):ZuccheroSangue[[#This Row],[ZUCCHERO NEL SANGUE (mg/dL)]]), "") -> 120.5
B10: =TODAY()-6 -> 2018-11-13 | C10: 19:15:00 | D10: 100 | E10: =IFERROR(AVERAGE(INDEX(ZuccheroSangue[ZUCCHERO NEL SANGUE (mg/dL)],1,1):ZuccheroSangue[[#This Row],[ZUCCHERO NEL SANGUE (mg/dL)]]), "") -> 113.7
B11: =TODAY()-5 -> 2018-11-14 | C11: 08:00:00 | D11: 132 | E11: =IFERROR(AVERAGE(INDEX(ZuccheroSangue[ZUCCHERO NEL SANGUE (mg/dL)],1,1):ZuccheroSangue[[#This Row],[ZUCCHERO NEL SANGUE (mg/dL)]]), "") -> 118.3
B12: 2018-11-14 | C12: 12:15:00 | D12: 100 | E12: =IFERROR(AVERAGE(INDEX(ZuccheroSangue[ZUCCHERO NEL SANGUE (mg/dL)],1,1):ZuccheroSangue[[#This Row],[ZUCCHERO NEL SANGUE (mg/dL)]]), "") -> 114.6
B13: =TODAY()-5 -> 2018-11-14 | C13: 18:45:00 | D13: 112 | E13: =IFERROR(AVERAGE(INDEX(ZuccheroSangue[ZUCCHERO NEL SANGUE (mg/dL)],1,1):ZuccheroSangue[[#This Row],[ZUCCHERO NEL SANGUE (mg/dL)]]), "") -> 114.2
B14: =TODAY()-4 -> 2018-11-15 | C14: 07:30:00 | D14: 117 | E14: =IFERROR(AVERAGE(INDEX(ZuccheroSangue[ZUCCHERO NEL SANGUE (mg/dL)],1,1):ZuccheroSangue[[#This Row],[ZUCCHERO NEL SANGUE (mg/dL)]]), "") -> 114.6
B15: =TODAY()-4 -> 2018-11-15 | C15: 11:30:00 | D15: 115 | E15: =IFERROR(AVERAGE(INDEX(ZuccheroSangue[ZUCCHERO NEL SANGUE (mg/dL)],1,1):ZuccheroSangue[[#This Row],[ZUCCHERO NEL SANGUE (mg/dL)]]), "") -> 114.6
B16: =TODAY()-4 -> 2018-11-15 | C16: 17:00:00 | D16: 112 | E16: =IFERROR(AVERAGE(INDEX(ZuccheroSangue[ZUCCHERO NEL SANGUE (mg/dL)],1,1):ZuccheroSangue[[#This Row],[ZUCCHERO NEL SANGUE (mg/dL)]]), "") -> 114.3
B17: =TODAY()-3 -> 2018-11-16 | C17: 07:30:00 | D17: 120 | E17: =IFERROR(AVERAGE(INDEX(ZuccheroSangue[ZUCCHERO NEL SANGUE (mg/dL)],1,1):ZuccheroSangue[[#This Row],[ZUCCHERO NEL SANGUE (mg/dL)]]), "") -> 114.9
B18: 2018-11-16 | C18: 11:30:00 | D18: 118 | E18: =IFERROR(AVERAGE(INDEX(ZuccheroSangue[ZUCCHERO NEL SANGUE (mg/dL)],1,1):ZuccheroSangue[[#This Row],[ZUCCHERO NEL SANGUE (mg/dL)]]), "") -> 115.2
B19: =TODAY()-3 -> 2018-11-16 | C19: 17:00:00 | D19: 102 | E19: =IFERROR(AVERAGE(INDEX(ZuccheroSangue[ZUCCHERO NEL SANGUE (mg/dL)],1,1):ZuccheroSangue[[#This Row],[ZUCCHERO NEL SANGUE (mg/dL)]]), "") -> 114.1
B20: =TODAY()-2 -> 2018-11-17 | C20: 07:30:00 | D20: 124 | E20: =IFERROR(AVERAGE(INDEX(ZuccheroSangue[ZUCCHERO NEL SANGUE (mg/dL)],1,1):ZuccheroSangue[[#This Row],[ZUCCHERO NEL SANGUE (mg/dL)]]), "") -> 114.8
B21: 2018-11-17 | C21: 11:30:00 | D21: 100 | E21: =IFERROR(AVERAGE(INDEX(ZuccheroSangue[ZUCCHERO NEL SANGUE (mg/dL)],1,1):ZuccheroSangue[[#This Row],[ZUCCHERO NEL SANGUE (mg/dL)]]), "") -> 113.8
B22: =TODAY()-2 -> 2018-11-17 | C22: 17:00:00 | D22: 99 | E22: =IFERROR(AVERAGE(INDEX(ZuccheroSangue[ZUCCHERO NEL SANGUE (mg/dL)],1,1):ZuccheroSangue[[#This Row],[ZUCCHERO NEL SANGUE (mg/dL)]]), "") -> 112.8
B23: =TODAY()-1 -> 2018-11-18 | C23: 07:30:00 | D23: 132 | E23: =IFERROR(AVERAGE(INDEX(ZuccheroSangue[ZUCCHERO NEL SANGUE (mg/dL)],1,1):ZuccheroSangue[[#This Row],[ZUCCHERO NEL SANGUE (mg/dL)]]), "") -> 114.0
B24: 2018-11-18 | C24: 11:30:00 | D24: 120 | E24: =IFERROR(AVERAGE(INDEX(ZuccheroSangue[ZUCCHERO NEL SANGUE (mg/dL)],1,1):ZuccheroSangue[[#This Row],[ZUCCHERO NEL SANGUE (mg/dL)]]), "") -> 114.4
B25: =TODAY()-1 -> 2018-11-18 | C25: 17:00:00 | D25: 100 | E25: =IFERROR(AVERAGE(INDEX(ZuccheroSangue[ZUCCHERO NEL SANGUE (mg/dL)],1,1):ZuccheroSangue[[#This Row],[ZUCCHERO NEL SANGUE (mg/dL)]]), "") -> 113.6
B26: =TODAY() -> 2018-11-19 | C26: 07:30:00 | D26: 113 | E26: =IFERROR(AVERAGE(INDEX(ZuccheroSangue[ZUCCHERO NEL SANGUE (mg/dL)],1,1):ZuccheroSangue[[#This Row],[ZUCCHERO NEL SANGUE (mg/dL)]]), "") -> 113.5
B27: =TODAY() -> 2018-11-19 | C27: 12:30:00 | D27: 111 | E27: =IFERROR(AVERAGE(INDEX(ZuccheroSangue[ZUCCHERO NEL SANGUE (mg/dL)],1,1):ZuccheroSangue[[#This Row],[ZUCCHERO NEL SANGUE (mg/dL)]]), "") -> 113.4
B28: =TODAY() -> 2018-11-19 | C28: 18:30:00 | D28: 115 | E28: =IFERROR(AVERAGE(INDEX(ZuccheroSangue[ZUCCHERO NEL SANGUE (mg/dL)],1,1):ZuccheroSangue[[#This Row],[ZUCCHERO NEL SANGUE (mg/dL)]]), "") -> 113.5
B29: =TODAY() -> 2018-11-19 | C29: 18:30:00 | D29: 115 | E29: =IFERROR(AVERAGE(INDEX(ZuccheroSangue[ZUCCHERO NEL SANGUE (mg/dL)],1,1):ZuccheroSangue[[#This Row],[ZUCCHERO NEL SANGUE (mg/dL)]]), "") -> 113.5
